[Event "Titled Tuesday Blitz May 31 Late 2022"]
[White "Melikhov, Evgeny V."]
[Black "Vypkhaniuk, Ihor"]
[WhiteFideId "4122046"]
[BlackFideId "14112256"]
[WhiteElo "1931"]
[BlackElo "2346"]
[Result "0-1"]
[Round "08"]
[TimeControl "180+1"]
[Date "2022.06.01"]
[WhiteClock "0:00:11"]
[BlackClock "0:00:45"]

1. d4 {[%clk 0:03:00]}  Nf6 {[%clk 0:02:56]} 2. c4 {[%clk 0:03:01]}  c5 {[%clk 0:02:56]} 3. d5 {[%clk 0:03:00]}  b5 {[%clk 0:02:55]} 4. cxb5 {[%clk 0:03:01]}  a6 {[%clk 0:02:55]} 5. b6 {[%clk 0:03:01]}  e6 {[%clk 0:02:54]} 6. Nc3 {[%clk 0:03:01]}  Nxd5 {[%clk 0:02:53]} 7. Nxd5 {[%clk 0:03:01]}  exd5 {[%clk 0:02:54]} 8. Qxd5 {[%clk 0:03:02]}  Nc6 {[%clk 0:02:55]} 9. e4 {[%clk 0:03:02]}  Be7 {[%clk 0:02:55]} 10. Bc4 {[%clk 0:03:02]}  O-O {[%clk 0:02:55]} 11. Nf3 {[%clk 0:03:02]}  Rb8 {[%clk 0:02:56]} 12. O-O {[%clk 0:03:01]}  Rxb6 {[%clk 0:02:56]} 13. Ng5 {[%clk 0:02:57]}  Nb4 {[%clk 0:02:15]} 14. Nxf7 {[%clk 0:02:29]}  Nxd5 {[%clk 0:02:13]} 15. Nxd8 {[%clk 0:02:29]}  Rxd8 {[%clk 0:02:14]} 16. Bxd5+ {[%clk 0:02:28]}  Kf8 {[%clk 0:02:14]} 17. b3 {[%clk 0:02:27]}  Bf6 {[%clk 0:02:14]} 18. Rb1 {[%clk 0:02:27]}  Bb7 {[%clk 0:02:11]} 19. Bxb7 {[%clk 0:02:18]}  Rxb7 {[%clk 0:02:12]} 20. Be3 {[%clk 0:02:14]}  d6 {[%clk 0:02:05]} 21. Rfd1 {[%clk 0:02:12]}  a5 {[%clk 0:01:58]} 22. e5 {[%clk 0:01:57]}  Bxe5 {[%clk 0:01:53]} 23. Bxc5 {[%clk 0:01:56]}  a4 {[%clk 0:01:51]} 24. b4 {[%clk 0:01:53]}  a3 {[%clk 0:01:46]} 25. b5 {[%clk 0:01:48]}  Ke7 {[%clk 0:01:39]} 26. Bxa3 {[%clk 0:01:44]}  Rdb8 {[%clk 0:01:39]} 27. Rb3 {[%clk 0:01:16]}  Rxb5 {[%clk 0:01:37]} 28. Rdb1 {[%clk 0:01:16]}  Rxb3 {[%clk 0:01:33]} 29. axb3 {[%clk 0:01:11]}  Ke6 {[%clk 0:01:29]} 30. Kf1 {[%clk 0:01:03]}  d5 {[%clk 0:01:26]} 31. Ke2 {[%clk 0:01:02]}  h5 {[%clk 0:01:21]} 32. h3 {[%clk 0:01:01]}  d4 {[%clk 0:01:21]} 33. Kd3 {[%clk 0:00:59]}  Kd5 {[%clk 0:01:21]} 34. Bc1 {[%clk 0:00:55]}  Bd6 {[%clk 0:01:16]} 35. Bd2 {[%clk 0:00:45]}  Bb4 {[%clk 0:01:07]} 36. Bxb4 {[%clk 0:00:42]}  Rxb4 {[%clk 0:01:08]} 37. f4 {[%clk 0:00:41]}  h4 {[%clk 0:01:05]} 38. Rb2 {[%clk 0:00:39]}  Rb6 {[%clk 0:01:05]} 39. b4 {[%clk 0:00:39]}  Rg6 {[%clk 0:00:57]} 40. b5 {[%clk 0:00:38]}  Rg3+ {[%clk 0:00:57]} 41. Kd2 {[%clk 0:00:33]}  Rxg2+ {[%clk 0:00:57]} 42. Kc1 {[%clk 0:00:33]}  Rg1+ {[%clk 0:00:52]} 43. Kd2 {[%clk 0:00:32]}  Rg2+ {[%clk 0:00:53]} 44. Kc1 {[%clk 0:00:32]}  Rxb2 {[%clk 0:00:51]} 45. Kxb2 {[%clk 0:00:32]}  Kc5 {[%clk 0:00:51]} 46. b6 {[%clk 0:00:18]}  Kxb6 {[%clk 0:00:51]} 47. Kb3 {[%clk 0:00:17]}  Kc5 {[%clk 0:00:52]} 48. Kc2 {[%clk 0:00:13]}  Kc4 {[%clk 0:00:52]} 49. Kd2 {[%clk 0:00:14]}  d3 {[%clk 0:00:49]} 50. Kd1 {[%clk 0:00:10]}  Kc3 {[%clk 0:00:48]} 51. Kc1 {[%clk 0:00:10]}  d2+ {[%clk 0:00:43]} 52. Kd1 {[%clk 0:00:10]}  Kd3 {[%clk 0:00:44]} 53. f5 {[%clk 0:00:11]}  Ke3 {[%clk 0:00:45]} 0-1


[Site "https://www.chess.com"]

[Event "Titled Tuesday Blitz May 31 Late 2022"]
[White "Mendoza Criollo, Carlos David"]
[Black "Kujawski, Adam"]
[WhiteFideId "3618323"]
[BlackFideId "1100920"]
[WhiteElo "1715"]
[BlackElo "1982"]
[Result "1/2-1/2"]
[Round "08"]
[TimeControl "180+1"]
[Date "2022.06.01"]
[WhiteClock "0:01:02"]
[BlackClock "0:00:04"]

1. d4 {[%clk 0:02:59]}  Nf6 {[%clk 0:02:59]} 2. c4 {[%clk 0:02:59]}  e6 {[%clk 0:02:59]} 3. Nc3 {[%clk 0:02:59]}  Bb4 {[%clk 0:02:59]} 4. Qc2 {[%clk 0:02:59]}  d5 {[%clk 0:02:58]} 5. cxd5 {[%clk 0:03:00]}  exd5 {[%clk 0:02:57]} 6. Bg5 {[%clk 0:03:00]}  h6 {[%clk 0:02:57]} 7. Bh4 {[%clk 0:03:00]}  c5 {[%clk 0:02:57]} 8. dxc5 {[%clk 0:02:55]}  Nc6 {[%clk 0:02:53]} 9. e3 {[%clk 0:02:55]}  g5 {[%clk 0:02:50]} 10. Bg3 {[%clk 0:02:55]}  Qa5 {[%clk 0:02:45]} 11. Bd3 {[%clk 0:02:52]}  d4 {[%clk 0:02:31]} 12. exd4 {[%clk 0:02:44]}  Nxd4 {[%clk 0:02:31]} 13. Qd2 {[%clk 0:02:43]}  O-O {[%clk 0:02:17]} 14. Nge2 {[%clk 0:02:42]}  Nxe2 {[%clk 0:01:53]} 15. Bxe2 {[%clk 0:02:42]}  Rd8 {[%clk 0:01:52]} 16. Qc2 {[%clk 0:02:36]}  Bf5 {[%clk 0:01:45]} 17. Qxf5 {[%clk 0:02:33]}  Bxc3+ {[%clk 0:01:45]} 18. Kf1 {[%clk 0:02:34]}  Bxb2 {[%clk 0:01:41]} 19. Rb1 {[%clk 0:02:14]}  Rd2 {[%clk 0:01:21]} 20. Rxb2 {[%clk 0:01:59]}  Rxb2 {[%clk 0:01:17]} 21. Be5 {[%clk 0:01:59]}  Rxe2 {[%clk 0:00:31]} 22. Kxe2 {[%clk 0:01:59]}  Qxa2+ {[%clk 0:00:27]} 23. Ke1 {[%clk 0:01:42]}  Re8 {[%clk 0:00:21]} 24. Qxf6 {[%clk 0:01:38]}  Qa1+ {[%clk 0:00:20]} 25. Kd2 {[%clk 0:01:35]}  Qxe5 {[%clk 0:00:20]} 26. Qxe5 {[%clk 0:01:30]}  Rxe5 {[%clk 0:00:21]} 27. Rb1 {[%clk 0:01:30]}  Rxc5 {[%clk 0:00:20]} 28. Rxb7 {[%clk 0:01:30]}  Ra5 {[%clk 0:00:20]} 29. g3 {[%clk 0:01:25]}  Kg7 {[%clk 0:00:21]} 30. Ke3 {[%clk 0:01:24]}  h5 {[%clk 0:00:21]} 31. h4 {[%clk 0:01:23]}  gxh4 {[%clk 0:00:20]} 32. gxh4 {[%clk 0:01:24]}  Kg6 {[%clk 0:00:19]} 33. Kf3 {[%clk 0:01:24]}  Ra4 {[%clk 0:00:19]} 34. Kg3 {[%clk 0:01:22]}  a6 {[%clk 0:00:18]} 35. Ra7 {[%clk 0:01:22]}  f6 {[%clk 0:00:17]} 36. f3 {[%clk 0:01:22]}  Kf5 {[%clk 0:00:17]} 37. Ra8 {[%clk 0:01:21]}  Ra1 {[%clk 0:00:16]} 38. Rh8 {[%clk 0:01:21]}  Kg6 {[%clk 0:00:15]} 39. Rg8+ {[%clk 0:01:20]}  Kf7 {[%clk 0:00:15]} 40. Rh8 {[%clk 0:01:20]}  Ra5 {[%clk 0:00:14]} 41. Ra8 {[%clk 0:01:18]}  Kg7 {[%clk 0:00:11]} 42. Kf4 {[%clk 0:01:16]}  Kg6 {[%clk 0:00:06]} 43. Rg8+ {[%clk 0:01:15]}  Kf7 {[%clk 0:00:07]} 44. Ra8 {[%clk 0:01:16]}  Ke6 {[%clk 0:00:07]} 45. Rh8 {[%clk 0:01:14]}  Ra4+ {[%clk 0:00:07]} 46. Kg3 {[%clk 0:01:14]}  Kf5 {[%clk 0:00:07]} 47. Rxh5+ {[%clk 0:01:14]}  Kg6 {[%clk 0:00:08]} 48. Rh8 {[%clk 0:01:14]}  Ra1 {[%clk 0:00:08]} 49. Ra8 {[%clk 0:01:14]}  a5 {[%clk 0:00:07]} 50. Kg4 {[%clk 0:01:13]}  Rg1+ {[%clk 0:00:06]} 51. Kf4 {[%clk 0:01:13]}  Ra1 {[%clk 0:00:06]} 52. Ra6 {[%clk 0:01:13]}  a4 {[%clk 0:00:05]} 53. h5+ {[%clk 0:01:10]}  Kxh5 {[%clk 0:00:05]} 54. Rxf6 {[%clk 0:01:10]}  a3 {[%clk 0:00:05]} 55. Ra6 {[%clk 0:01:08]}  Ra2 {[%clk 0:00:05]} 56. Kf5 {[%clk 0:01:09]}  Kh4 {[%clk 0:00:05]} 57. f4 {[%clk 0:01:07]}  Kg3 {[%clk 0:00:04]} 58. Kg5 {[%clk 0:01:05]}  Ra1 {[%clk 0:00:04]} 59. f5 {[%clk 0:01:06]}  Kf3 {[%clk 0:00:03]} 60. f6 {[%clk 0:01:05]}  a2 {[%clk 0:00:02]} 61. Kg6 {[%clk 0:01:04]}  Rg1+ {[%clk 0:00:01]} 62. Kh7 {[%clk 0:01:04]}  a1=Q {[%clk 0:00:02]} 63. Rxa1 {[%clk 0:01:04]}  Rxa1 {[%clk 0:00:03]} 64. f7 {[%clk 0:01:04]}  Ra8 {[%clk 0:00:04]} 65. Kg7 {[%clk 0:01:04]}  Ke4 {[%clk 0:00:04]} 66. f8=Q {[%clk 0:01:01]}  Rxf8 {[%clk 0:00:04]} 67. Kxf8 {[%clk 0:01:02]} 1/2-1/2


[Site "https://www.chess.com"]

[Event "Titled Tuesday Blitz May 31 Late 2022"]
[White "Nakamura, Hikaru"]
[Black "Xiong, Jeffery"]
[WhiteFideId "2016192"]
[BlackFideId "2047640"]
[WhiteElo "2850"]
[BlackElo "2727"]
[Result "1-0"]
[Round "08"]
[TimeControl "180+1"]
[Date "2022.05.31"]
[WhiteClock "0:01:46"]
[BlackClock "0:01:27"]

1. Nf3 {[%clk 0:03:00]}  c5 {[%clk 0:03:00]} 2. b3 {[%clk 0:02:58]}  Nf6 {[%clk 0:02:59]} 3. e3 {[%clk 0:02:59]}  g6 {[%clk 0:02:59]} 4. Bb2 {[%clk 0:02:59]}  Bg7 {[%clk 0:02:59]} 5. g3 {[%clk 0:02:58]}  b6 {[%clk 0:02:56]} 6. Bg2 {[%clk 0:02:58]}  Bb7 {[%clk 0:02:57]} 7. O-O {[%clk 0:02:58]}  O-O {[%clk 0:02:58]} 8. c4 {[%clk 0:02:59]}  d5 {[%clk 0:02:46]} 9. Qe2 {[%clk 0:02:54]}  Nc6 {[%clk 0:02:43]} 10. Rd1 {[%clk 0:02:45]}  dxc4 {[%clk 0:02:31]} 11. bxc4 {[%clk 0:02:43]}  Qc7 {[%clk 0:02:32]} 12. d4 {[%clk 0:02:42]}  cxd4 {[%clk 0:02:30]} 13. exd4 {[%clk 0:02:41]}  Na5 {[%clk 0:02:29]} 14. Na3 {[%clk 0:02:37]}  e6 {[%clk 0:02:29]} 15. Rac1 {[%clk 0:02:35]}  Rac8 {[%clk 0:02:28]} 16. Nb5 {[%clk 0:02:29]}  Qb8 {[%clk 0:02:27]} 17. d5 {[%clk 0:02:29]}  exd5 {[%clk 0:02:26]} 18. Be5 {[%clk 0:02:29]}  Rfe8 {[%clk 0:02:25]} 19. Qb2 {[%clk 0:02:26]}  Qa8 {[%clk 0:01:49]} 20. Bxf6 {[%clk 0:02:24]}  Nxc4 {[%clk 0:01:49]} 21. Rxc4 {[%clk 0:01:46]}  dxc4 {[%clk 0:01:39]} 22. Bxg7 {[%clk 0:01:45]}  Bxf3 {[%clk 0:01:28]} 23. Bh6 {[%clk 0:01:45]}  c3 {[%clk 0:01:27]} 24. Nxc3 {[%clk 0:01:46]} 1-0


[Site "https://www.chess.com"]

[Event "Titled Tuesday Blitz May 31 Late 2022"]
[White "Plazuelo Pascual, Juan"]
[Black "Ozdemir, Serhan Berat"]
[WhiteFideId "32059566"]
[BlackFideId "6374611"]
[WhiteElo "2359"]
[BlackElo "1920"]
[Result "1-0"]
[Round "08"]
[TimeControl "180+1"]
[Date "2022.06.01"]
[WhiteClock "0:00:26"]
[BlackClock "0:00:04"]

1. d4 {[%clk 0:02:57]}  Nf6 {[%clk 0:02:58]} 2. c4 {[%clk 0:02:56]}  g6 {[%clk 0:02:56]} 3. Nc3 {[%clk 0:02:56]}  Bg7 {[%clk 0:02:57]} 4. e4 {[%clk 0:02:56]}  d6 {[%clk 0:02:57]} 5. f3 {[%clk 0:02:57]}  O-O {[%clk 0:02:58]} 6. Be3 {[%clk 0:02:57]}  c5 {[%clk 0:02:58]} 7. dxc5 {[%clk 0:02:57]}  dxc5 {[%clk 0:02:57]} 8. Qxd8 {[%clk 0:02:58]}  Rxd8 {[%clk 0:02:57]} 9. Bxc5 {[%clk 0:02:59]}  Nc6 {[%clk 0:02:57]} 10. Be3 {[%clk 0:02:59]}  e6 {[%clk 0:02:33]} 11. Nh3 {[%clk 0:02:55]}  b6 {[%clk 0:02:21]} 12. Nf2 {[%clk 0:02:53]}  Ba6 {[%clk 0:02:01]} 13. Rc1 {[%clk 0:02:52]}  Nd7 {[%clk 0:01:49]} 14. b3 {[%clk 0:02:51]}  Nde5 {[%clk 0:01:28]} 15. f4 {[%clk 0:02:46]}  Nd7 {[%clk 0:01:23]} 16. Be2 {[%clk 0:02:44]}  Nd4 {[%clk 0:01:22]} 17. O-O {[%clk 0:02:27]}  Nxe2+ {[%clk 0:01:12]} 18. Nxe2 {[%clk 0:02:27]}  Nc5 {[%clk 0:01:13]} 19. Rfd1 {[%clk 0:02:26]}  Bb7 {[%clk 0:01:05]} 20. e5 {[%clk 0:02:23]}  Bf8 {[%clk 0:01:04]} 21. Nc3 {[%clk 0:02:20]}  a6 {[%clk 0:00:57]} 22. g4 {[%clk 0:01:55]}  Be7 {[%clk 0:00:55]} 23. h3 {[%clk 0:01:55]}  h5 {[%clk 0:00:47]} 24. Rxd8+ {[%clk 0:01:51]}  Rxd8 {[%clk 0:00:46]} 25. Rd1 {[%clk 0:01:51]}  hxg4 {[%clk 0:00:40]} 26. hxg4 {[%clk 0:01:50]}  Rxd1+ {[%clk 0:00:32]} 27. Nfxd1 {[%clk 0:01:50]}  Bf3 {[%clk 0:00:29]} 28. Nf2 {[%clk 0:01:48]}  Nd7 {[%clk 0:00:27]} 29. g5 {[%clk 0:01:41]}  Bb4 {[%clk 0:00:25]} 30. Nce4 {[%clk 0:01:39]}  b5 {[%clk 0:00:20]} 31. Bd2 {[%clk 0:01:39]}  Be7 {[%clk 0:00:18]} 32. Be3 {[%clk 0:01:36]}  Be2 {[%clk 0:00:12]} 33. c5 {[%clk 0:01:35]}  Nb8 {[%clk 0:00:11]} 34. Nd6 {[%clk 0:01:23]}  Bf3 {[%clk 0:00:10]} 35. Nc8 {[%clk 0:01:19]}  Kf8 {[%clk 0:00:04]} 36. Nd3 {[%clk 0:01:20]}  a5 {[%clk 0:00:03]} 37. Kf2 {[%clk 0:01:19]}  Be4 {[%clk 0:00:03]} 38. Nc1 {[%clk 0:01:17]}  b4 {[%clk 0:00:04]} 39. Nb6 {[%clk 0:01:14]}  Na6 {[%clk 0:00:03]} 40. Bd4 {[%clk 0:01:09]}  Nxc5 {[%clk 0:00:03]} 41. Ke3 {[%clk 0:01:10]}  Bc6 {[%clk 0:00:03]} 42. Kd2 {[%clk 0:00:46]}  Ke8 {[%clk 0:00:03]} 43. Nc4 {[%clk 0:00:43]}  a4 {[%clk 0:00:02]} 44. Kc2 {[%clk 0:00:42]}  axb3+ {[%clk 0:00:02]} 45. axb3 {[%clk 0:00:40]}  Bd5 {[%clk 0:00:03]} 46. Nb6 {[%clk 0:00:37]}  Nd7 {[%clk 0:00:03]} 47. Na4 {[%clk 0:00:36]}  Nb8 {[%clk 0:00:02]} 48. Bc5 {[%clk 0:00:32]}  Nc6 {[%clk 0:00:02]} 49. Bxe7 {[%clk 0:00:32]}  Kxe7 {[%clk 0:00:03]} 50. Nb6 {[%clk 0:00:31]}  Nd4+ {[%clk 0:00:03]} 51. Kb2 {[%clk 0:00:30]}  Nf3 {[%clk 0:00:03]} 52. Nd3 {[%clk 0:00:28]}  Nd2 {[%clk 0:00:01]} 53. Nxb4 {[%clk 0:00:29]}  Ne4 {[%clk 0:00:01]} 54. N4xd5+ {[%clk 0:00:29]}  exd5 {[%clk 0:00:02]} 55. Nxd5+ {[%clk 0:00:30]}  Ke6 {[%clk 0:00:03]} 56. Ne3 {[%clk 0:00:30]}  Nf2 {[%clk 0:00:04]} 57. Kc3 {[%clk 0:00:25]}  Nh3 {[%clk 0:00:04]} 58. Ng2 {[%clk 0:00:26]}  Nf2 {[%clk 0:00:03]} 59. Kd4 {[%clk 0:00:25]}  Nh3 {[%clk 0:00:01]} 60. b4 {[%clk 0:00:26]}  Nf2 {[%clk 0:00:01]} 61. b5 {[%clk 0:00:26]}  Kd7 {[%clk 0:00:02]} 62. Kd5 {[%clk 0:00:24]}  Nd1 {[%clk 0:00:03]} 63. b6 {[%clk 0:00:23]}  Nc3+ {[%clk 0:00:04]} 64. Kc4 {[%clk 0:00:24]}  Na4 {[%clk 0:00:03]} 65. Kb5 {[%clk 0:00:24]}  Nc3+ {[%clk 0:00:04]} 66. Kc5 {[%clk 0:00:24]}  Na4+ {[%clk 0:00:04]} 67. Kb5 {[%clk 0:00:24]}  Nc3+ {[%clk 0:00:04]} 68. Ka6 {[%clk 0:00:24]}  Kc6 {[%clk 0:00:02]} 69. b7 {[%clk 0:00:24]}  Kc7 {[%clk 0:00:01]} 70. Ka7 {[%clk 0:00:24]}  Nb5+ {[%clk 0:00:02]} 71. Ka8 {[%clk 0:00:25]}  Kc6 {[%clk 0:00:01]} 72. b8=Q {[%clk 0:00:25]}  Nc7+ {[%clk 0:00:02]} 73. Ka7 {[%clk 0:00:25]}  Nb5+ {[%clk 0:00:03]} 74. Ka6 {[%clk 0:00:25]}  Nc7+ {[%clk 0:00:04]} 75. Ka5 {[%clk 0:00:26]}  Nd5 {[%clk 0:00:04]} 76. Qb5+ {[%clk 0:00:25]}  Kc7 {[%clk 0:00:04]} 77. Qxd5 {[%clk 0:00:26]} 1-0


[Site "https://www.chess.com"]

[Event "Titled Tuesday Blitz May 31 Late 2022"]
[White "Przybylski, Wojciech"]
[Black "Jumabayev, Rinat"]
[WhiteFideId "1117599"]
[BlackFideId "13702661"]
[WhiteElo "2133"]
[BlackElo "2561"]
[Result "0-1"]
[Round "08"]
[TimeControl "180+1"]
[Date "2022.05.31"]
[WhiteClock "0:00:20"]
[BlackClock "0:00:15"]

1. e4 {[%clk 0:03:00]}  g6 {[%clk 0:03:00]} 2. d4 {[%clk 0:02:59]}  c6 {[%clk 0:03:00]} 3. Nc3 {[%clk 0:03:00]}  d6 {[%clk 0:02:58]} 4. Nf3 {[%clk 0:02:59]}  Bg7 {[%clk 0:02:56]} 5. Be2 {[%clk 0:02:59]}  Nf6 {[%clk 0:02:56]} 6. O-O {[%clk 0:02:59]}  O-O {[%clk 0:02:57]} 7. Re1 {[%clk 0:02:58]}  e5 {[%clk 0:02:57]} 8. d5 {[%clk 0:02:58]}  cxd5 {[%clk 0:02:53]} 9. Nxd5 {[%clk 0:02:57]}  Nxe4 {[%clk 0:02:52]} 10. c4 {[%clk 0:02:53]}  Nc6 {[%clk 0:02:51]} 11. Bf1 {[%clk 0:02:52]}  Nc5 {[%clk 0:02:51]} 12. b4 {[%clk 0:02:50]}  Ne6 {[%clk 0:02:51]} 13. Rb1 {[%clk 0:02:49]}  b6 {[%clk 0:02:49]} 14. Be3 {[%clk 0:02:44]}  Bb7 {[%clk 0:02:49]} 15. a4 {[%clk 0:02:43]}  h6 {[%clk 0:02:42]} 16. Qd2 {[%clk 0:02:35]}  Kh7 {[%clk 0:02:41]} 17. a5 {[%clk 0:02:24]}  Ncd4 {[%clk 0:02:36]} 18. Nxd4 {[%clk 0:02:21]}  exd4 {[%clk 0:02:37]} 19. Bf4 {[%clk 0:02:19]}  b5 {[%clk 0:02:29]} 20. Bg3 {[%clk 0:02:00]}  Rc8 {[%clk 0:02:28]} 21. a6 {[%clk 0:01:52]}  Ba8 {[%clk 0:02:23]} 22. Qa2 {[%clk 0:01:50]}  bxc4 {[%clk 0:02:11]} 23. Bxc4 {[%clk 0:01:48]}  Rxc4 {[%clk 0:02:12]} 24. Qxc4 {[%clk 0:01:46]}  Qg5 {[%clk 0:01:53]} 25. Nc7 {[%clk 0:01:33]}  Nxc7 {[%clk 0:01:46]} 26. Qxc7 {[%clk 0:01:31]}  d3 {[%clk 0:01:46]} 27. Qxd6 {[%clk 0:00:58]}  d2 {[%clk 0:01:44]} 28. Red1 {[%clk 0:00:57]}  Rd8 {[%clk 0:01:44]} 29. Qf4 {[%clk 0:00:48]}  Qd5 {[%clk 0:01:43]} 30. f3 {[%clk 0:00:48]}  g5 {[%clk 0:01:29]} 31. Qc7 {[%clk 0:00:42]}  Rd7 {[%clk 0:01:29]} 32. Qc2+ {[%clk 0:00:39]}  f5 {[%clk 0:01:27]} 33. Bf2 {[%clk 0:00:38]}  g4 {[%clk 0:01:03]} 34. Qc5 {[%clk 0:00:37]}  Qd3 {[%clk 0:00:59]} 35. Qe3 {[%clk 0:00:17]}  Qxa6 {[%clk 0:00:47]} 36. Rxd2 {[%clk 0:00:14]}  Rxd2 {[%clk 0:00:43]} 37. Qxd2 {[%clk 0:00:14]}  gxf3 {[%clk 0:00:44]} 38. Qf4 {[%clk 0:00:12]}  Be4 {[%clk 0:00:41]} 39. Re1 {[%clk 0:00:08]}  Qg6 {[%clk 0:00:35]} 40. Bg3 {[%clk 0:00:05]}  Bd4+ {[%clk 0:00:32]} 41. Re3 {[%clk 0:00:04]}  fxg2 {[%clk 0:00:28]} 42. Qc7+ {[%clk 0:00:04]}  Qg7 {[%clk 0:00:28]} 43. Qxg7+ {[%clk 0:00:04]}  Kxg7 {[%clk 0:00:29]} 44. Bf4 {[%clk 0:00:04]}  a6 {[%clk 0:00:26]} 45. h3 {[%clk 0:00:03]}  Kg6 {[%clk 0:00:26]} 46. Kh2 {[%clk 0:00:03]}  Bxe3 {[%clk 0:00:16]} 47. Bxe3 {[%clk 0:00:04]}  h5 {[%clk 0:00:17]} 48. Kg3 {[%clk 0:00:04]}  Kf6 {[%clk 0:00:16]} 49. Bd4+ {[%clk 0:00:03]}  Ke6 {[%clk 0:00:17]} 50. Kf2 {[%clk 0:00:03]}  Kd5 {[%clk 0:00:17]} 51. Bf6 {[%clk 0:00:03]}  Kc4 {[%clk 0:00:15]} 52. Be7 {[%clk 0:00:03]}  Bd5 {[%clk 0:00:16]} 53. Bd6 {[%clk 0:00:03]}  Kd3 {[%clk 0:00:16]} 54. h4 {[%clk 0:00:03]}  Bc6 {[%clk 0:00:14]} 55. Be7 {[%clk 0:00:03]}  f4 {[%clk 0:00:14]} 56. Bd6 {[%clk 0:00:03]}  Ke4 {[%clk 0:00:13]} 57. Kg1 {[%clk 0:00:02]}  Kf3 {[%clk 0:00:13]} 58. Bc7 {[%clk 0:00:02]}  Bb5 {[%clk 0:00:13]} 59. Bd6 {[%clk 0:00:02]}  Kg3 {[%clk 0:00:13]} 60. Bc7 {[%clk 0:00:02]}  Bc6 {[%clk 0:00:13]} 61. Bd6 {[%clk 0:00:02]}  Kg4 {[%clk 0:00:13]} 62. Bc5 {[%clk 0:00:01]}  Kg3 {[%clk 0:00:12]} 63. Bf2+ {[%clk 0:00:01]}  Kh3 {[%clk 0:00:12]} 64. Be1 {[%clk 0:00:01]}  Bb5 {[%clk 0:00:12]} 65. Bf2 {[%clk 0:00:02]}  Bf1 {[%clk 0:00:12]} 66. Be1 {[%clk 0:00:02]}  Kg4 {[%clk 0:00:13]} 67. Bf2 {[%clk 0:00:03]}  Kf3 {[%clk 0:00:13]} 68. Be1 {[%clk 0:00:03]}  Ke2 {[%clk 0:00:14]} 69. Bc3 {[%clk 0:00:03]}  f3 {[%clk 0:00:14]} 70. Bd4 {[%clk 0:00:04]}  Kd3 {[%clk 0:00:14]} 71. Bf2 {[%clk 0:00:04]}  Ke4 {[%clk 0:00:15]} 72. Bc5 {[%clk 0:00:04]}  Bb5 {[%clk 0:00:16]} 73. Be7 {[%clk 0:00:03]}  Kd5 {[%clk 0:00:16]} 74. Bc5 {[%clk 0:00:03]}  Kc4 {[%clk 0:00:17]} 75. Be7 {[%clk 0:00:03]}  Kd5 {[%clk 0:00:17]} 76. Kf2 {[%clk 0:00:04]}  Be8 {[%clk 0:00:17]} 77. Bf8 {[%clk 0:00:04]}  Ke6 {[%clk 0:00:17]} 78. Bc5 {[%clk 0:00:04]}  Bc6 {[%clk 0:00:18]} 79. Bf8 {[%clk 0:00:04]}  Kf6 {[%clk 0:00:18]} 80. Bc5 {[%clk 0:00:04]}  Ke5 {[%clk 0:00:19]} 81. Bf8 {[%clk 0:00:04]}  Ke4 {[%clk 0:00:19]} 82. Bc5 {[%clk 0:00:04]}  Kd3 {[%clk 0:00:20]} 83. Be7 {[%clk 0:00:04]}  Kc4 {[%clk 0:00:21]} 84. Bf8 {[%clk 0:00:05]}  Bd7 {[%clk 0:00:20]} 85. Be7 {[%clk 0:00:05]}  Kd4 {[%clk 0:00:19]} 86. Bf8 {[%clk 0:00:05]}  Ke4 {[%clk 0:00:20]} 87. Be7 {[%clk 0:00:06]}  Kf4 {[%clk 0:00:21]} 88. Bc5 {[%clk 0:00:06]}  Kg4 {[%clk 0:00:21]} 89. Be7 {[%clk 0:00:06]}  Kh3 {[%clk 0:00:22]} 90. Kg1 {[%clk 0:00:06]}  Kg3 {[%clk 0:00:22]} 91. Bc5 {[%clk 0:00:06]}  Kxh4 {[%clk 0:00:22]} 92. Kh2 {[%clk 0:00:06]}  Kg4 {[%clk 0:00:22]} 93. Bf2 {[%clk 0:00:07]}  Bb5 {[%clk 0:00:21]} 94. Be1 {[%clk 0:00:06]}  Kf5 {[%clk 0:00:21]} 95. Kg1 {[%clk 0:00:06]}  Ke4 {[%clk 0:00:21]} 96. Bf2 {[%clk 0:00:06]}  Kd3 {[%clk 0:00:21]} 97. Bc5 {[%clk 0:00:06]}  Ke2 {[%clk 0:00:19]} 98. Bd6 {[%clk 0:00:07]}  h4 {[%clk 0:00:19]} 99. Bc5 {[%clk 0:00:07]}  h3 {[%clk 0:00:19]} 100. Bb6 {[%clk 0:00:07]}  f2+ {[%clk 0:00:18]} 101. Bxf2 {[%clk 0:00:07]}  h2+ {[%clk 0:00:17]} 102. Kxg2 {[%clk 0:00:07]}  Bc6+ {[%clk 0:00:16]} 103. Kxh2 {[%clk 0:00:07]}  Kxf2 {[%clk 0:00:17]} 104. Kh3 {[%clk 0:00:08]}  Bf3 {[%clk 0:00:16]} 105. Kh4 {[%clk 0:00:08]}  Ke3 {[%clk 0:00:17]} 106. Kg3 {[%clk 0:00:08]}  Be2 {[%clk 0:00:16]} 107. Kg2 {[%clk 0:00:08]}  Kd3 {[%clk 0:00:16]} 108. Kf2 {[%clk 0:00:09]}  Kd2 {[%clk 0:00:17]} 109. Kg3 {[%clk 0:00:09]}  Kc3 {[%clk 0:00:17]} 110. Kf2 {[%clk 0:00:09]}  Bh5 {[%clk 0:00:17]} 111. Ke3 {[%clk 0:00:10]}  Bg4 {[%clk 0:00:15]} 112. Ke4 {[%clk 0:00:09]}  Kxb4 {[%clk 0:00:15]} 113. Kd3 {[%clk 0:00:10]}  Kb3 {[%clk 0:00:15]} 114. Kd2 {[%clk 0:00:10]}  Kb2 {[%clk 0:00:16]} 115. Kd3 {[%clk 0:00:11]}  a5 {[%clk 0:00:16]} 116. Kc4 {[%clk 0:00:12]}  a4 {[%clk 0:00:17]} 117. Kb4 {[%clk 0:00:12]}  a3 {[%clk 0:00:17]} 118. Ka4 {[%clk 0:00:13]}  a2 {[%clk 0:00:18]} 119. Kb4 {[%clk 0:00:14]}  a1=Q {[%clk 0:00:18]} 120. Kc4 {[%clk 0:00:15]}  Qa3 {[%clk 0:00:18]} 121. Kd4 {[%clk 0:00:15]}  Qc3+ {[%clk 0:00:18]} 122. Ke4 {[%clk 0:00:16]}  Bc8 {[%clk 0:00:17]} 123. Kf4 {[%clk 0:00:17]}  Qd4+ {[%clk 0:00:17]} 124. Kg5 {[%clk 0:00:18]}  Qe5+ {[%clk 0:00:16]} 125. Kh4 {[%clk 0:00:18]}  Qf4+ {[%clk 0:00:15]} 126. Kh5 {[%clk 0:00:18]}  Qg4+ {[%clk 0:00:15]} 127. Kh6 {[%clk 0:00:18]}  Be6 {[%clk 0:00:14]} 128. Kh7 {[%clk 0:00:19]}  Bf5+ {[%clk 0:00:15]} 129. Kh6 {[%clk 0:00:20]}  Qg6# {[%clk 0:00:15]} 0-1


[Site "https://www.chess.com"]